Workbook

Sheet Over all Budget
A1: S.No | B1: Particulars | C1: Estimate Expenses for Hariksha Learning Center April 2014 - March 2015
C2: Rs
B3: Total esstimate budget details
A4: 1 | B4: Hariksha CP/MR Learning Center one year running budget | C4: ='Runing budget'!C43 -> 1489871
A5: 2 | B5: Food Grand amount recived from TN Goverment | C5: 123500
B6: Uniform amound recived from Shamdasni foundation | C6: 64000
B7: Expected donation recived from Parents | C7: 60000
B8: Expected contribuition from Dhamaka Foundation | C8: 200000
B9: Expected contribuition from Give india Foundation and Local Sponsor | C9: 300000
B10: Proposed budget from Asha Foundation | C10: 742371

Sheet Runing budget
A1: S.No | B1: Particulars | C1: Total esstimate amount | D1: Sub details
C2: Rs/P
A3: Direct Aid for Childrens
A4: 1 | B4: Food expenses for children | C4: =45*15*240 -> 162000 | D4: 15 rs per head X 240 working days
A5: =A4+1 -> 2 | B5: 2set uniforms, shoes, id cards for children | C5: =1500*45 -> 67500 | D5: 1500.00 per children
A6: =A5+1 -> 3 | B6: Snacks and milk expenses for children | C6: =4*45*240 -> 43200 | D6: 4.00 per children
A7: 4 | B7: Medical investication & Medicine for children | C7: =50*45*12 -> 27000 | D7: 50.00 X45 children X 12 month
A8: 5 | B8: Medical camps | C8: 7500 | D8: 3 camp expenses
A9: 6 | B9: Personal hygince iteams for children | C9: 5000 | D9: needed children only
A10: 7 | B10: Libaray matterials | C10: 5000 | D10: Cp/Mr books for children and parents
A11: 8 | B11: Pillow and matts for children | C11: 5000 | D11: All childrens
A12: 9 | B12: Children day, disable day celabaration | C12: 10000 | D12: Birhday,Children day,Disable day
A13: 10 | B13: Tools and traning matterials for children | C13: 25000 | D13: Note book, Toys..
A14: 11 | B14: Eduation matterials for children | C14: 20000 | D14: bed boards, ealring matterials
A15: 12 | B15: Finshed ortho equipment for need childrens (calipers, splints,wheel chaire, carnot chaire) | C15: 20000
A16: 15 | B16: Childrens outing per year | C16: 15000 | D16: Staff details
A17: Staffs salarys | E17: Rs/P
A18: 16 | B18: Total staffs salary | C18: =E26*12 -> 534000 | D18: Co-ordinator | E18: 10000
A19: 17 | B19: P.F. for the staffs (staff welfare) | C19: =C18/100*13.65 -> 72891 | D19: Special eduactor | E19: 8000
A20: 18 | B20: Food expenses for the Staffs / Vistors | C20: =14*240*8 -> 26880 | D20: Ass. Spl eduactor | E20: 3500
A21: 19 | B21: Medical insurance for the staffs | C21: =1000*8 -> 8000 | D21: Physio therapist | E21: 8000
A22: 20 | B22: Staffs travelling expenses | C22: =8*750 -> 6000 | D22: Care taker | E22: 3000
A23: 21 | B23: Staff outing | C23: 20000 | D23: Care taker | E23: 3000
A24: 22 | B24: Learning center Recognization expenses (Building Stability certificate, Build stability licence, fire office no objection certificate, Total sanitation cerificate) | C24: 15000 | D24: Cook | E24: 3000
D25: Driver | E25: 6000
D26: Total | E26: =SUM(E16:E25) -> 44500
A27: Administration cost
A28: 23 | B28: Office supplies & stationary | C28: 12000
A29: 24 | B29: Postage | C29: 1500
A30: 25 | B30: Photos and report works | C30: 5000
A31: 26 | B31: E.B.Bill for the building | C31: =3400*6 -> 20400 | D31: 3400.00 X 6 month
A32: 27 | B32: Telephone, Magazine & fax charges | C32: 6000 | D32: 350 X 12 month
A33: In direct expenses for children
A34: 29 | B34: Vechical insurance for the School Van | C34: 25000 | D34: Appx
A35: =A34+1 -> 30 | B35: Van road tax for the van | C35: 10000 | D35: Yearly once
A36: =A35+1 -> 31 | B36: Disesl for the van | C36: =17000*12 -> 204000 | D36: 17000 per month x 12 months
A37: =A36+1 -> 32 | B37: Staffs field vist petol cost | C37: 6000 | D37: 500.00 / per month
A38: =A37+1 -> 33 | B38: Awarence to commuity and parents | C38: 5000 | D38: Parent meeting expenses
A39: 34 | B39: Repaire and maintance for the building | C39: 15000 | D39: Painting, water taps, and eletical works
A40: 35 | B40: Repaire and Maintance for the van | C40: =6000*12 -> 72000 | D40: Oil service, tyre,plate,and F.C. workers
A41: 36 | B41: Furniture & Fixtures | C41: 10000 | D41: Childrens sitting chiars and offic chairs
A42: 37 | B42: Miscellaneous expenses | C42: 3000
B43: Total estimate Budget / year | C43: =SUM(C4:C42) -> 1489871

Sheet Cash - details
A5: Before Nov - 2013 (-) cash | D5: = | E5: 182919.55
A6: Dec month runing expenses | D6: = | E6: 93842
A7: Jan month runing expenses | D7: = | E7: 104954
A8: Feb Month runing expenses | D8: = | E8: 95055
A9: March Month runing expenses | D9: = | E9: 57930
A11: Total (-) before April - 2014 | D11: = | E11: =SUM(E5:E10) -> 534700.55
